bitfinex-derivatives/quotes_BNBF0:USTF0_20260110
["timestamp","ask_amount","ask_price","bid_price","bid_amount"]
[1768039366292,2.754127,902.15,900.22,0.83125446]
[1768039369697,2.754127,902.15,900.23,0.83125446]
[1768039369907,2.754127,902.15,900.3,0.83125446]
[1768039370098,2.754127,902.26,900.36,0.83125446]
[1768039370297,2.754127,902.26,900.35,0.83125446]
[1768039370498,2.754127,902.33,900.38,0.83125446]
[1768039371293,2.754127,902.33,900.37,0.83125446]
[1768039371499,2.754127,902.34,900.37,0.83125446]
[1768039372599,2.754127,902.35,900.37,0.83125446]
[1768039373201,2.754127,902.35,900.36,0.83125446]
[1768039374202,2.754127,902.35,900.35,0.83125446]
[1768039374501,2.754127,902.35,900.33,0.83125446]
[1768039374700,2.754127,902.34,900.33,0.83125446]
[1768039375101,2.754127,902.32,900.31,0.83125446]
[1768039375599,2.754127,902.33,900.31,0.83125446]
[1768039376300,2.754127,902.33,900.3,0.83125446]
[1768039376801,2.754127,902.34,900.3,0.83125446]
[1768039378199,2.754127,902.35,900.29,0.83125446]
[1768039380207,2.754127,902.35,900.28,0.83125446]
[1768039381212,0.19308447,901.84,900.28,0.83125446]
[1768039381713,0.19308447,901.84,900.29,0.68675811]
[1768039381904,0.19308447,901.84,900.3,0.68675811]
[1768039382111,0.19308447,901.84,900.31,0.68675811]
[1768039382308,0.19308447,901.84,900.32,0.68675811]
[1768039382504,0.19308447,901.84,900.33,0.68675811]
[1768039382703,0.19308447,901.84,900.34,0.68675811]
[1768039382908,0.19308447,901.84,900.35,0.68675811]
[1768039383111,0.19308447,901.84,900.36,0.68675811]
[1768039383405,0.19308447,901.84,900.24,0.83125446]
[1768039383406,0.19308447,901.84,900.37,0.68675811]
[1768039383704,0.19308447,901.84,900.24,0.83125446]
[1768039383705,0.19308447,901.84,900.38,0.68675811]
[1768039383904,0.19308447,901.84,900.39,0.68675811]
[1768039384108,0.19308447,901.84,900.4,0.68675811]
[1768039384408,0.19308447,901.84,900.41,0.68675811]
[1768039384605,0.19308447,901.84,900.42,0.68675811]
[1768039384808,0.19308447,901.84,900.43,0.68675811]
[1768039385004,0.19308447,901.84,900.44,0.68675811]
[1768039385206,0.19308447,901.84,900.45,0.68675811]
[1768039385410,0.19308447,901.84,900.46,0.68675811]
[1768039385609,0.19308447,901.84,900.47,0.68675811]
[1768039385807,0.19308447,901.84,900.48,0.68675811]
[1768039386009,0.19308447,901.84,900.49,0.68675811]
[1768039386209,0.19308447,901.84,900.5,0.68675811]
[1768039386506,0.19308447,901.84,900.25,0.83125446]
[1768039386507,0.19308447,901.84,900.51,0.68675811]
[1768039386707,0.19308447,901.84,900.52,0.68675811]
[1768039386905,0.19308447,901.84,900.25,0.83125446]
[1768039386906,0.19308447,901.84,900.53,0.68675811]
[1768039387104,0.19308447,901.84,900.54,0.68675811]
[1768039387307,0.19308447,901.84,900.25,0.83125446]
[1768039387506,0.19308447,901.84,900.26,0.68672353]
[1768039387706,0.19308447,901.84,900.27,0.68672353]
[1768039388010,0.19308447,901.84,900.28,0.68672353]
[1768039388209,0.19308447,901.84,900.29,0.68672353]
[1768039388408,0.19308447,901.84,900.3,0.68672353]
[1768039388606,0.19308447,901.84,900.31,0.68672353]
[1768039388904,0.19308447,901.84,900.32,0.68672353]
[1768039389107,0.19308447,901.84,900.33,0.68672353]
[1768039389308,0.19308447,901.84,900.34,0.68672353]
[1768039389506,0.19308447,901.84,900.35,0.68672353]
[1768039389808,0.19308447,901.84,900.36,0.68672353]
[1768039390010,0.19308447,901.84,900.37,0.68672353]
[1768039390306,0.19308447,901.84,900.38,0.68672353]
[1768039390506,0.19308447,901.84,900.39,0.68672353]
[1768039390710,0.19308447,901.84,900.09,1.10599073]
[1768039390907,0.19308447,901.84,900.23,0.82986625]
[1768039391207,0.19308447,901.84,900.24,0.68679596]
[1768039391409,0.19308447,901.84,900.25,0.68679596]
[1768039391709,0.19308447,901.84,900.26,0.68679596]
[1768039392009,0.19308447,901.84,900.27,0.68679596]
[1768039392206,0.19308447,901.84,900.28,0.68679596]
[1768039392506,0.19308447,901.84,900.29,0.68679596]
[1768039392706,0.19308447,901.84,900.3,0.68679596]
[1768039392906,0.19308447,901.84,900.31,0.68679596]
[1768039393105,0.19308447,901.84,900.32,0.68679596]
[1768039393306,0.19308447,901.84,900.33,0.68679596]
[1768039393508,0.19308447,901.84,900.34,0.68679596]
[1768039393807,0.19308447,901.84,900.35,0.68679596]
[1768039394007,0.19308447,901.84,900.36,0.68679596]
[1768039394210,0.19308447,901.84,900.37,0.68679596]
[1768039394410,0.19308447,901.84,900.38,0.68679596]
[1768039394610,0.19308447,901.84,900.39,0.68679596]
[1768039394809,0.19308447,901.84,900.4,0.68679596]
[1768039395108,0.19308447,901.84,900.41,0.68679596]
[1768039395413,0.19308447,901.84,900.42,0.68679596]
[1768039395608,0.19308447,901.84,900.43,0.68679596]
[1768039395914,0.19308447,901.84,900.44,0.68679596]
[1768039396113,0.19308447,901.84,900.45,0.68679596]
[1768039396413,0.19308447,901.84,900.46,0.68679596]
[1768039396709,0.19308447,901.84,900.47,0.68679596]
[1768039396910,0.19308447,901.84,900.48,0.68679596]
[1768039397109,0.19308447,901.84,900.49,0.68679596]
[1768039397313,0.19308447,901.84,900.5,0.68679596]
[1768039397514,0.19308447,901.84,900.51,0.68679596]
[1768039397812,0.19308447,901.84,900.52,0.68679596]
[1768039398011,0.19308447,901.84,900.53,0.68679596]
[1768039398211,0.19308447,901.84,900.54,0.68679596]
[1768039398410,0.19308447,901.84,900.25,0.82986625]
[1768039398615,0.19308447,901.84,900.26,0.68735528]
[1768039398814,0.19308447,901.84,900.27,0.68735528]
[1768039399013,0.19308447,901.84,900.28,0.68735528]
[1768039399213,0.19308447,901.84,900.29,0.68735528]
[1768039399418,0.19308447,901.84,900.3,0.68735528]
[1768039399616,0.19308447,901.84,900.31,0.68735528]
[1768039399914,0.19308447,901.84,900.32,0.68735528]
[1768039400113,0.19308447,901.84,900.33,0.68735528]
[1768039400312,0.19308447,901.84,900.34,0.68735528]
[1768039400514,0.19308447,901.84,900.35,0.68735528]
[1768039400817,0.19308447,901.84,900.36,0.68735528]
[1768039401113,0.19308447,901.84,900.37,0.68735528]
[1768039401414,0.19308447,901.84,900.38,0.68735528]
[1768039401618,0.19308447,901.84,900.39,0.68735528]
[1768039401818,0.19308447,901.84,900.4,0.68735528]
[1768039402114,0.19308447,901.84,900.41,0.68735528]
[1768039402319,0.19308447,901.84,900.42,0.68735528]
[1768039402516,0.19308447,901.84,900.43,0.68735528]
[1768039402719,0.19308447,901.84,900.44,0.68735528]
[1768039402918,0.19308447,901.84,900.45,0.68735528]
[1768039403220,0.19308447,901.84,900.12,1.10599073]
[1768039403221,0.19308447,901.84,900.46,0.68735528]
[1768039403517,0.19308447,901.84,900.47,0.68735528]
[1768039403722,0.19308447,901.84,900.48,0.68735528]
[1768039403921,0.19308447,901.84,900.49,0.68735528]
[1768039404122,0.19308447,901.84,900.5,0.68735528]
[1768039404418,0.19308447,901.84,900.51,0.68735528]
[1768039404616,0.19308447,901.84,900.52,0.68735528]
[1768039404823,0.19308447,901.84,900.53,0.68735528]
[1768039405022,0.19308447,901.84,900.54,0.68735528]
[1768039405318,0.19308447,901.84,900.55,0.68735528]
[1768039405523,0.19308447,901.84,900.56,0.68735528]
[1768039405725,0.19308447,901.84,900.57,0.68735528]
[1768039405924,0.19308447,901.84,900.58,0.68735528]
[1768039406123,0.19308447,901.84,900.59,0.68735528]
[1768039406320,0.19308447,901.84,900.6,0.68735528]
[1768039406525,0.19308447,901.84,900.61,0.68735528]
[1768039406725,0.19308447,901.84,900.62,0.68735528]
[1768039407024,0.19308447,901.84,900.63,0.68735528]
[1768039407222,0.19308447,901.84,900.64,0.68735528]
[1768039407425,0.19308447,901.84,900.65,0.68735528]
[1768039407627,0.19308447,901.84,900.66,0.68735528]
[1768039407829,0.19308447,901.84,900.67,0.68735528]
[1768039408123,0.19308447,901.84,900.39,0.82986625]
[1768039408124,0.19308447,901.84,900.68,0.68735528]
[1768039408323,0.19308447,901.84,900.4,0.82986625]
[1768039408625,0.19308447,901.84,900.41,0.68889538]
[1768039408827,0.19308447,901.84,900.42,0.68889538]
[1768039409128,0.19308447,901.84,900.43,0.68889538]
[1768039409322,0.19308447,901.84,900.4,0.82986625]
[1768039409323,0.19308447,901.84,900.44,0.68889538]
[1768039409527,0.19308447,901.84,900.45,0.68889538]
[1768039409727,0.19308447,901.84,900.46,0.68889538]
[1768039409925,0.19308447,901.84,900.47,0.68889538]
[1768039410228,0.19308447,901.84,900.48,0.68889538]
[1768039410427,0.19308447,901.84,900.49,0.68889538]
[1768039410625,0.19308447,901.84,900.5,0.68889538]
[1768039410826,0.19308447,901.84,900.51,0.68889538]
[1768039411029,0.19308447,901.84,900.52,0.68889538]
[1768039411229,0.19308447,901.84,900.53,0.68889538]
[1768039411430,0.19308447,901.84,900.54,0.68889538]
[1768039411626,0.19308447,901.84,900.55,0.68889538]
[1768039411926,0.19308447,901.84,900.56,0.68889538]
[1768039412126,0.19308447,901.84,900.57,0.68889538]
[1768039412428,0.19308447,901.84,900.58,0.68889538]
[1768039412625,0.19308447,901.84,900.59,0.68889538]
[1768039412826,0.19308447,901.84,900.6,0.68889538]
[1768039413026,0.19308447,901.84,900.61,0.68889538]
[1768039413328,0.19308447,901.84,900.62,0.68889538]
[1768039413530,0.19308447,901.84,900.63,0.68889538]
[1768039413825,0.19308447,901.84,900.64,0.68889538]
[1768039414024,0.19308447,901.84,900.65,0.68889538]
[1768039414229,0.19308447,901.84,900.66,0.68889538]
[1768039414428,0.19308447,901.84,900.38,0.82986625]
[1768039414626,0.19308447,901.84,900.39,0.68820561]
[1768039414828,0.19308447,901.84,900.4,0.68820561]
[1768039415028,0.19308447,901.84,900.41,0.68820561]
[1768039415226,0.19308447,901.84,900.42,0.68820561]
[1768039415429,0.19308447,901.84,900.43,0.68820561]
[1768039415726,0.19308447,901.84,900.44,0.68820561]
[1768039415926,0.19308447,901.84,900.45,0.68820561]
[1768039416130,0.19308447,901.84,900.46,0.68820561]
[1768039416330,0.19308447,901.84,900.47,0.68820561]
[1768039416529,0.19308447,901.84,900.48,0.68820561]
[1768039416728,0.19308447,901.84,900.49,0.68820561]
[1768039416934,0.19308447,901.84,900.5,0.68820561]
[1768039417232,0.19308447,901.84,900.51,0.68820561]
[1768039417430,0.19308447,901.84,900.52,0.68820561]
[1768039417630,0.19308447,901.84,900.53,0.68820561]
[1768039417831,0.19308447,901.84,900.54,0.68820561]
[1768039418031,0.19308447,901.84,900.55,0.68820561]
[1768039418230,0.19308447,901.84,900.56,0.68820561]
[1768039418428,0.19308447,901.84,900.57,0.68820561]
[1768039418633,0.19308447,901.84,900.58,0.68820561]
[1768039418833,0.19308447,901.84,900.59,0.68820561]
[1768039419133,0.19308447,901.84,900.6,0.68820561]
[1768039419334,0.19308447,901.84,900.61,0.68820561]
[1768039419532,0.19308447,901.84,900.62,0.68820561]
[1768039419729,0.19308447,901.84,900.63,0.68820561]
[1768039420032,0.19308447,901.84,900.64,0.68820561]
[1768039420232,0.19308447,901.84,900.65,0.68820561]
[1768039420433,0.19308447,901.84,900.66,0.68820561]
[1768039420630,0.19308447,901.84,900.67,0.68820561]
[1768039420827,0.19308447,901.84,900.39,0.82986625]
[1768039420828,0.19308447,901.84,900.68,0.68820561]
[1768039421030,0.19308447,901.84,900.39,0.82986625]
[1768039421336,0.19308447,901.84,900.4,0.68843257]
[1768039421533,0.19308447,901.84,900.41,0.68843257]
[1768039421733,0.19308447,901.84,900.42,0.68843257]
[1768039422029,0.19308447,901.84,900.43,0.68843257]
[1768039422230,0.19308447,901.84,900.44,0.68843257]
[1768039422535,0.19308447,901.84,900.45,0.68843257]
[1768039422730,0.19308447,901.84,900.46,0.68843257]
[1768039423033,0.19308447,901.84,900.47,0.68843257]
[1768039423234,0.19308447,901.84,900.48,0.68843257]
[1768039423432,0.19308447,901.84,900.49,0.68843257]
[1768039423632,0.19308447,901.84,900.5,0.68843257]
[1768039423830,0.19308447,901.84,900.51,0.68843257]
[1768039424031,0.19308447,901.84,900.52,0.68843257]
[1768039424230,0.19308447,901.84,900.53,0.68843257]
[1768039424433,0.19308447,901.84,900.54,0.68843257]
[1768039424634,0.19308447,901.84,900.55,0.68843257]
[1768039424834,0.19308447,901.84,900.56,0.68843257]
[1768039425135,0.19308447,901.84,900.57,0.68843257]
[1768039425333,0.19308447,901.84,900.58,0.68843257]
[1768039425531,0.19308447,901.84,900.41,0.82986625]
[1768039425532,0.19308447,901.84,900.59,0.68843257]
[1768039425730,0.19308447,901.84,900.6,0.68843257]
[1768039426030,0.19308447,901.84,900.61,0.68843257]
[1768039426234,0.19308447,901.84,900.62,0.68843257]
[1768039426433,0.19308447,901.84,900.63,0.68843257]
[1768039426637,0.19308447,901.84,900.64,0.68843257]
[1768039426933,0.19308447,901.84,900.65,0.68843257]
[1768039427244,0.19308447,901.84,900.66,0.68843257]
[1768039427434,0.19308447,901.84,900.67,0.68843257]
[1768039427738,0.19308447,901.84,900.68,0.68843257]
[1768039427936,0.19308447,901.84,900.69,0.68843257]
[1768039428137,0.19308447,901.84,900.7,0.68843257]
[1768039428436,0.19308447,901.84,899.88,4.18848112]
[1768039428437,0.19308447,901.84,900.71,0.68843257]
[1768039428633,0.19308447,901.84,900.72,0.68843257]
[1768039428834,0.19308447,901.84,900.73,0.68843257]
[1768039429038,0.19308447,901.84,900.74,0.68843257]
[1768039429235,0.19308447,901.84,900.75,0.68843257]
[1768039429436,0.19308447,901.84,900.76,1.51829882]
[1768039429735,0.19308447,901.84,900.77,0.68843257]
[1768039429939,0.19308447,901.84,900.78,0.68843257]
[1768039430137,0.19308447,901.84,900.79,0.68843257]
[1768039430338,0.19308447,901.84,900.8,0.68843257]
[1768039430534,0.19308447,901.84,900.81,0.68843257]
[1768039430733,0.19308447,901.84,900.82,0.68843257]
[1768039430938,0.19308447,901.84,900.83,0.68843257]
[1768039431138,0.19308447,901.84,900.84,0.68843257]
[1768039431337,0.19308447,901.84,900.85,0.68843257]
[1768039431540,0.19308447,901.84,900.86,0.68843257]
[1768039431738,0.19308447,901.84,900.87,0.68843257]
[1768039431935,0.19308447,901.84,900.88,0.68843257]
[1768039432237,0.19308447,901.84,900.89,0.68843257]
[1768039432435,0.19308447,901.84,900.9,0.68843257]
[1768039432735,0.19308447,901.84,900.91,0.68843257]
[1768039432939,0.19308447,901.84,900.92,0.68843257]
[1768039433138,0.19308447,901.84,900.93,0.68843257]
[1768039433336,0.19308447,901.84,900.94,0.68843257]
[1768039433536,0.19308447,901.84,900.95,0.68843257]
[1768039433740,0.19308447,901.84,900.96,0.68843257]
[1768039433941,0.19308447,901.84,900.97,0.68843257]
[1768039434140,0.19308447,901.84,900.68,0.82986625]
[1768039434335,0.19308447,901.84,900.69,0.6861009]
[1768039434542,0.19308447,901.84,900.7,0.6861009]
[1768039434742,0.19308447,901.84,900.71,0.6861009]
[1768039434939,0.19308447,901.84,900.72,0.6861009]
[1768039435142,0.19308447,901.84,900.73,0.6861009]
[1768039435441,0.19308447,901.84,900.74,0.6861009]
[1768039435739,0.19308447,901.84,900.75,0.6861009]
[1768039435938,0.19308447,901.84,900.76,0.6861009]
[1768039436238,0.19308447,901.84,900.77,0.6861009]
[1768039436444,0.19308447,901.84,900.78,0.6861009]
[1768039436640,0.19308447,901.84,900.79,0.6861009]
[1768039436838,0.19308447,901.84,900.8,0.6861009]
[1768039437040,0.19308447,901.84,900.81,0.6861009]
[1768039437344,0.19308447,901.84,900.82,0.6861009]
[1768039437643,0.19308447,901.84,900.83,0.6861009]
[1768039437845,0.19308447,901.84,900.84,0.6861009]
[1768039438140,0.19308447,901.84,900.85,0.6861009]
[1768039438345,0.19308447,901.84,900.86,0.6861009]
[1768039438645,0.19308447,901.84,900.87,0.6861009]
[1768039438845,0.19308447,901.84,900.88,0.6861009]
[1768039439141,0.19308447,901.84,900.89,0.6861009]
[1768039439344,0.19308447,901.84,900.9,0.6861009]
[1768039439543,0.19308447,901.84,900.61,0.82986625]
[1768039439742,0.19308447,901.84,900.62,0.68529168]
[1768039439945,0.19308447,901.84,900.63,0.68529168]
[1768039440141,0.19308447,901.84,900.64,0.68529168]
[1768039440342,0.19308447,901.84,900.65,0.68529168]
[1768039440542,0.19308447,901.84,900.66,0.68529168]
[1768039440842,0.19308447,901.84,900.67,0.68529168]
[1768039441043,0.19308447,901.84,900.68,0.68529168]
[1768039441243,0.19308447,901.84,900.69,0.68529168]
[1768039441445,0.19308447,901.84,900.7,0.68529168]
[1768039441643,0.19308447,901.84,900.71,0.68529168]
[1768039441843,0.19308447,901.84,900.72,0.68529168]
[1768039442044,0.19308447,901.84,900.73,0.68529168]
[1768039442244,0.19308447,901.84,900.74,0.68529168]
[1768039442446,0.19308447,901.84,900.75,0.68529168]
[1768039442742,0.19308447,901.84,900.76,0.68529168]
[1768039442942,0.19308447,901.84,900.77,0.68529168]
[1768039443144,0.19308447,901.84,900.78,0.68529168]
[1768039443341,0.19308447,901.84,900.79,0.68529168]
[1768039443548,0.19308447,901.84,900.8,0.68529168]
[1768039443745,0.19308447,901.84,900.81,0.68529168]
[1768039443947,0.19308447,901.84,900.82,0.68529168]
[1768039444245,0.19308447,901.84,900.83,0.68529168]
[1768039444448,0.19308447,901.84,900.84,0.68529168]
[1768039444749,0.19308447,901.84,900.85,0.68529168]
[1768039445049,0.19308447,901.84,900.86,0.68529168]
[1768039445345,0.19308447,901.84,900.87,0.68529168]
[1768039445550,0.19308447,901.84,900.88,0.68529168]
[1768039445744,0.19308447,901.84,900.89,0.68529168]
[1768039445950,0.19308447,901.84,900.6,0.82986625]
[1768039446246,0.19308447,901.84,900.61,0.68705602]
[1768039446448,0.19308447,901.84,900.62,0.68705602]
[1768039446650,0.19308447,901.84,900.63,0.68705602]
[1768039446850,0.19308447,901.84,900.64,0.68705602]
[1768039447050,0.19308447,901.84,900.65,0.68705602]
[1768039447351,0.19308447,901.84,900.66,0.68705602]
[1768039447549,0.19308447,901.84,900.67,0.68705602]
[1768039447748,0.19308447,901.84,900.68,0.68705602]
[1768039448048,0.19308447,901.84,900.69,0.68705602]
[1768039448247,0.19308447,901.84,900.7,0.68705602]
[1768039448548,0.19308447,901.84,900.71,0.68705602]
[1768039448749,0.19308447,901.84,900.72,0.68705602]
[1768039448949,0.19308447,901.84,900.73,0.68705602]
[1768039449150,0.19308447,901.84,900.74,0.68705602]
[1768039449351,0.19308447,901.84,900.75,0.68705602]
[1768039449549,0.19308447,901.84,900.76,0.68705602]
[1768039449748,0.19308447,901.84,900.77,0.68705602]
[1768039449950,0.19308447,901.84,900.78,0.68705602]
[1768039450154,0.19308447,901.84,900.79,0.68705602]
[1768039450350,0.19308447,901.84,900.8,0.68705602]
[1768039450555,0.19308447,901.84,900.81,0.68705602]
[1768039450753,0.19308447,901.84,900.82,0.68705602]
[1768039450952,0.19308447,901.84,900.83,0.68705602]
[1768039451155,0.19308447,901.84,900.84,0.68705602]
[1768039451450,0.19308447,901.84,900.85,0.68705602]
[1768039451752,0.19308447,901.84,900.86,0.68705602]
[1768039451952,0.19308447,901.84,900.87,0.68705602]
[1768039452149,0.19308447,901.84,900.88,0.68705602]
[1768039452354,0.19308447,901.84,900.89,0.68691326]
[1768039452554,0.19308447,901.84,900.6,0.82986625]
[1768039452754,0.19308447,901.84,900.61,0.68691313]
[1768039452952,0.19308447,901.84,900.62,0.68691313]
[1768039453155,0.19308447,901.84,900.63,0.68691313]
[1768039453355,0.19308447,901.84,900.64,0.68691313]
[1768039453554,0.19308447,901.84,900.65,0.68691313]
[1768039453854,0.19308447,901.84,900.66,0.68691313]
[1768039454052,0.19308447,901.84,900.67,0.68691313]
[1768039454252,0.19308447,901.84,900.68,0.68691313]
[1768039454452,0.19308447,901.84,900.69,0.68691313]
[1768039454655,0.19308447,901.84,900.7,0.68691313]
[1768039454856,0.19308447,901.84,900.71,0.68691313]
[1768039455056,0.19308447,901.84,900.72,0.68691313]
[1768039455356,0.19308447,901.84,900.73,0.68691313]
[1768039455556,0.19308447,901.84,900.74,0.68691313]
[1768039455755,0.19308447,901.84,900.75,0.68691313]
[1768039455954,0.19308447,901.84,900.76,0.68691313]
[1768039456152,0.19308447,901.84,900.77,0.68691313]
[1768039456451,0.19308447,901.84,900.78,0.68691313]
[1768039456656,0.19308447,901.84,900.79,0.68691313]
[1768039456857,0.19308447,901.84,900.8,0.68691313]
[1768039457057,0.19308447,901.84,900.81,0.68691313]
[1768039457254,0.19308447,901.84,900.82,0.68691313]
[1768039457452,0.19308447,901.84,900.83,0.68691313]
[1768039457656,0.19308447,901.84,900.84,0.68691313]
[1768039457853,0.19308447,901.84,900.85,0.68691313]
[1768039458054,0.19308447,901.84,900.86,0.68691313]
[1768039458254,0.19308447,901.84,900.87,0.68691313]
[1768039458455,0.19308447,901.84,900.88,0.68691313]
[1768039458653,0.19308447,901.84,900.89,0.68691313]
[1768039458853,0.19308447,901.84,900.9,0.68691313]
[1768039459056,0.19308447,901.84,900.91,0.68691313]
[1768039459256,0.19308447,901.84,900.92,0.68691313]
[1768039459452,0.19308447,901.84,900.93,0.68691313]
[1768039459656,0.19308447,901.84,900.94,0.68691313]
[1768039459857,0.19308447,901.84,900.95,0.68691313]
[1768039460058,0.19308447,901.84,900.96,0.68691313]
[1768039460255,0.19308447,901.84,900.97,0.68691313]
[1768039460455,0.19308447,901.84,900.98,0.68691313]
[1768039460658,0.19308447,901.84,900.99,0.68691313]
[1768039460857,0.19308447,901.84,900.7,0.82986625]
[1768039461157,0.19308447,901.84,900.71,0.68730554]
[1768039461358,0.19308447,901.84,900.72,0.68730554]
[1768039461557,0.19308447,901.84,900.73,0.68730554]
[1768039461756,0.19308447,901.84,900.74,0.68730554]
[1768039461958,0.19308447,901.84,900.75,0.68730554]
[1768039462155,0.19308447,901.84,900.76,0.68730554]
[1768039462360,0.19308447,901.84,900.77,0.68730554]
[1768039462655,0.19308447,901.84,900.78,0.68730554]
[1768039462959,0.19308447,901.84,900.79,0.68730554]
[1768039463157,0.19308447,901.84,900.8,0.68730554]
[1768039463360,0.19308447,901.84,900.81,0.68730554]
[1768039463560,0.19308447,901.84,900.82,0.68730554]
[1768039463856,0.19308447,901.84,900.83,0.68730554]
[1768039464060,0.19308447,901.84,900.84,0.68730554]
[1768039464257,0.19308447,901.84,900.85,0.68730554]
[1768039464460,0.19308447,901.84,900.86,0.68730554]
[1768039464662,0.19308447,901.84,900.87,0.68730554]
[1768039464862,0.19308447,901.84,900.88,0.68730554]
[1768039465062,0.19308447,901.84,900.89,0.68730554]
[1768039465260,0.19308447,901.84,900.9,0.68730554]
[1768039465464,0.19308447,901.84,900.91,0.68730554]
[1768039465660,0.19308447,901.84,900.92,0.68730554]
[1768039465868,0.19308447,901.84,900.93,0.68730554]
[1768039466160,0.19308447,901.84,900.94,0.68730554]
[1768039466461,0.19308447,901.84,900.95,0.68730554]
[1768039466659,0.19308447,901.84,900.96,0.68730554]
[1768039466861,0.19308447,901.84,900.97,0.68730554]
[1768039467061,0.19308447,901.84,900.98,0.68730554]
[1768039467264,0.19308447,901.84,900.99,0.68730554]
[1768039467560,0.19308447,901.84,901.0,0.68730554]
[1768039467765,0.19308447,901.84,901.01,0.68730554]
[1768039467966,0.19308447,901.84,901.02,0.68730554]
[1768039468266,0.19308447,901.84,901.03,0.68730554]
[1768039468565,0.19308447,901.84,901.04,0.68730554]
[1768039468865,0.19308447,901.84,900.75,0.82986625]
[1768039469065,0.19308447,901.84,900.76,0.68864607]
[1768039469261,0.19308447,901.84,900.77,0.68864607]
[1768039469465,0.19308447,901.84,900.78,0.68864607]
[1768039469665,0.19308447,901.84,900.79,0.68864607]
[1768039469862,0.19308447,901.84,900.8,0.68864607]
[1768039470163,0.19308447,901.84,900.81,0.68864607]
[1768039470365,0.19308447,901.84,900.82,0.68864607]
[1768039470561,0.19308447,901.84,900.83,0.68864607]
[1768039470765,0.19308447,901.84,900.84,0.68864607]
[1768039470962,0.19308447,901.84,900.85,0.68864607]
[1768039471166,0.19308447,901.84,900.86,0.68864607]
[1768039471465,0.19308447,901.84,900.87,0.68864607]
[1768039471666,0.19308447,901.84,900.88,0.68864607]
[1768039471866,0.19308447,901.84,900.89,0.68864607]
[1768039472166,0.19308447,901.84,900.9,0.68864607]
[1768039472462,0.19308447,901.84,900.91,0.68864607]
[1768039472662,0.19308447,901.84,900.92,0.68864607]
[1768039472967,0.19308447,901.84,900.93,0.68864607]
[1768039473166,0.19308447,901.84,900.94,0.68864607]
[1768039473367,0.19308447,901.84,900.95,0.68864607]
[1768039473663,0.19308447,901.84,900.96,0.68864607]
[1768039473967,0.19308447,901.84,900.97,0.68864607]
[1768039474173,0.19308447,901.84,900.98,0.68864607]
[1768039474363,0.19308447,901.84,900.99,0.68864607]
[1768039474568,0.19308447,901.84,901.0,0.68864607]
[1768039474868,0.19308447,901.84,901.01,0.68864607]
[1768039475164,0.19308447,901.84,901.02,0.68864607]
[1768039475363,0.19308447,901.84,901.03,0.68864607]
[1768039475562,0.19308447,901.84,901.04,0.68864607]
[1768039475764,0.19308447,901.84,901.05,0.68864607]
[1768039475963,0.19308447,901.84,901.06,0.68864607]
[1768039476163,0.19308447,901.84,900.83,4.12144366]
[1768039476364,0.19308447,901.84,900.84,0.69494199]
[1768039476565,0.19308447,901.84,900.85,0.69494199]
[1768039476767,0.19308447,901.84,900.83,4.12144366]
[1768039476768,0.19308447,901.84,900.86,0.69494199]
[1768039476967,0.19308447,901.84,900.87,0.69494199]
[1768039477168,0.19308447,901.84,900.88,0.69494199]
[1768039477369,0.19308447,901.84,900.89,0.69494199]
[1768039477566,0.19308447,901.84,900.9,0.69494199]
[1768039477770,0.19308447,901.84,900.91,0.69494199]
[1768039477968,0.19308447,901.84,900.92,0.69494199]
[1768039478269,0.19308447,901.84,900.93,0.69494199]
[1768039478471,0.19308447,901.84,900.83,4.12144366]
[1768039478472,0.19308447,901.84,900.94,0.69494199]
[1768039478673,0.19308447,901.84,900.95,0.69494199]
[1768039478970,0.19308447,901.84,900.96,0.69494199]
[1768039479168,0.19308447,901.84,900.97,0.69494199]
[1768039479366,0.19308447,901.84,900.98,0.69494199]
[1768039479572,0.19308447,901.84,900.99,0.69494199]
[1768039479767,0.19308447,901.84,901.0,0.69494199]
[1768039479971,0.19308447,901.84,901.01,0.69494199]
[1768039480169,0.19308447,901.84,901.02,0.69494199]
[1768039480369,0.19308447,901.84,901.03,0.69494199]
[1768039480570,0.19308447,901.84,901.04,0.69494199]
[1768039480873,0.19308447,901.84,901.05,0.69494199]
[1768039481074,0.19308447,901.84,900.83,4.12144366]
[1768039481270,0.19308447,901.84,900.84,0.69473995]
[1768039481571,0.19308447,901.84,900.85,0.69473995]
[1768039481775,0.19308447,901.84,900.86,0.69473995]
[1768039481973,0.19308447,901.84,900.87,0.69473995]
[1768039482172,0.19308447,901.84,900.88,0.69473995]
[1768039482378,0.19308447,901.84,900.89,0.69473995]
[1768039482677,0.19308447,901.84,900.9,0.69473995]
[1768039482978,0.19308447,901.84,900.91,0.69473995]
[1768039483172,0.19308447,901.84,900.92,0.69473995]
[1768039483373,0.19308447,901.84,900.93,0.69473995]
[1768039483575,0.19308447,901.84,900.94,0.69473995]
[1768039483775,0.19308447,901.84,900.95,0.69473995]
[1768039483978,0.19308447,901.84,900.96,0.69473995]
[1768039484177,0.19308447,901.84,900.97,0.69473995]
[1768039484382,0.19308447,901.84,900.83,4.12144366]
[1768039484584,0.19308447,901.84,900.84,0.69462256]
[1768039484776,0.19308447,901.84,900.85,0.69462256]
[1768039484980,0.19308447,901.84,900.86,0.69462256]
[1768039485181,0.19308447,901.84,900.87,0.69462256]
[1768039485478,0.19308447,901.84,900.88,0.69462256]